fUST/lending_fUST_20260208
["ID","MTS","AMOUNT","RATE_DAILY","PERIOD"]
[404766187,1770517841346,-500.0,0.00017839,2]
[404766188,1770517841355,-500.0,0.00017839,2]
[404766189,1770517841364,-500.0,0.00017839,2]
[404766190,1770517841374,-500.0,0.00017839,2]
[404766191,1770517841383,-500.0,0.00017839,2]
[404766192,1770517841393,-500.0,0.00017839,2]
[404766193,1770517841407,-500.0,0.00017839,2]
[404766194,1770517841416,-500.0,0.00017839,2]
[404766195,1770517841426,-500.0,0.00017839,2]
[404766196,1770517841438,-500.0,0.00017839,2]
[404766197,1770517841448,-500.0,0.00017839,2]
[404766198,1770517841457,-500.0,0.00017839,2]
[404766199,1770517841467,-500.0,0.00017839,2]
[404766200,1770517841477,-500.0,0.00017839,2]
[404766201,1770517841487,-500.0,0.00017839,2]
[404766202,1770517841497,-500.0,0.00017839,2]
[404766203,1770517841506,-500.0,0.00017839,2]
[404766204,1770517841516,-500.0,0.00017839,2]
[404766205,1770517841526,-500.0,0.00017839,2]
[404766206,1770517841535,-153.88841115,0.00017839,2]
[404766207,1770517841544,-3356.16263333,0.00018109,2]
[404766208,1770517841555,-306.54362247,0.00018109,2]
[404766209,1770517841564,-702.6778527,0.00018109,2]
[404766210,1770517841573,-222.439,0.00018111,2]
[404766211,1770517841582,-151.0,0.00018114,2]
[404766212,1770517841591,-151.0,0.00018114,2]
[404766213,1770517841600,-151.0,0.00018114,2]
[404766214,1770517841610,-151.0,0.00018114,2]
[404766215,1770517841619,-151.0,0.00018114,2]
[404766216,1770517841628,-151.0,0.00018114,2]
[404766217,1770517841638,-151.0,0.00018114,2]
[404766218,1770517841648,-151.0,0.00018114,2]
[404766219,1770517841658,-151.0,0.00018114,2]
[404766220,1770517841667,-151.0,0.00018114,2]
[404766221,1770517841676,-151.0,0.00018114,2]
[404766222,1770517841686,-178.006924,0.00018114,2]
[404766223,1770517841695,-182.370545,0.00018114,2]
[404766224,1770517841705,-182.370545,0.00018114,2]
[404766225,1770517841715,-182.370545,0.00018114,2]
[404766226,1770517841725,-182.370545,0.00018114,2]
[404766227,1770517841735,-182.370545,0.00018114,2]
[404766228,1770517841744,-182.370545,0.00018114,2]
[404766229,1770517841755,-182.370545,0.00018114,2]
[404766230,1770517841764,-182.370545,0.00018114,2]
[404766231,1770517841773,-182.370545,0.00018114,2]
[404766232,1770517841782,-182.370545,0.00018114,2]
[404766233,1770517841793,-182.370545,0.00018114,2]
[404766234,1770517841802,-182.370545,0.00018114,2]
[404766235,1770517841811,-182.370545,0.00018114,2]
[404766236,1770517841821,-182.370545,0.00018114,2]
[404766237,1770517841831,-182.370545,0.00018114,2]
[404766238,1770517841840,-182.370545,0.00018114,2]
[404766239,1770517841849,-182.370545,0.00018114,2]
[404766240,1770517841859,-182.370545,0.00018114,2]
[404766241,1770517841869,-182.370545,0.00018114,2]
[404766242,1770517841879,-182.370542,0.00018114,2]
[404766243,1770517841888,-151.0,0.00018115,2]
[404766244,1770517841898,-157.880192,0.00018115,2]
[404766245,1770517841908,-151.0,0.00018115,2]
[404766246,1770517841917,-151.0,0.00018115,2]
[404766247,1770517841926,-151.0,0.00018115,2]
[404766248,1770517841936,-151.0,0.00018115,2]
[404766249,1770517841945,-151.0,0.00018115,2]
[404766250,1770517841955,-151.0,0.00018115,2]
[404766251,1770517841964,-151.0,0.00018115,2]
[404766252,1770517841973,-154.516252,0.00018115,2]
[404766253,1770517841982,-10000.0,0.00018118,2]
[404766254,1770517841992,-151.0,0.00018118,2]
[404766255,1770517842001,-695.94259855,0.00018394,2]
[404766256,1770517842010,-161.293932,0.00019178,2]
[404766257,1770517842019,-917.00671809,0.00019477,7]
[404766258,1770517842028,-1251.44398071,0.00019652,2]
[404766259,1770517842038,-233.72089306,0.00019674,7]
[404766260,1770517842047,-800.0,0.00019754,2]
[404766261,1770517842056,-151.0,0.00019754,2]
[404766262,1770517842065,-831.3353765,0.00019828,2]
[404766263,1770517842074,-800.0,0.00019885,2]
[404766264,1770517842083,-482.35,0.000199,2]
[404766265,1770517842093,-318.96015483,0.00019913,2]
[404766266,1770517842102,-7222.41289044,0.0002,2]
[404766267,1770517842111,-203.32673786,0.0002,2]
[404766268,1770517842121,-505.75659987,0.0002,2]
[404766269,1770517842130,-151.666472,0.0002,2]
[404766270,1770517842139,-501.23689327,0.0002,2]
[404766271,1770517842149,-178.988777,0.00020009,2]
[404766272,1770517842158,-1079.7175193,0.00020404,2]
[404766273,1770517842167,-240.9175429,0.00020916,2]
[404766274,1770517842177,-31248.94002386,0.00021,2]
[404766275,1770517842186,-824.23,0.0002149,10]
[404766276,1770517842195,-4325.2980134,0.000215,2]
[404766277,1770517842205,-721.261723,0.00021918,2]
[404766278,1770517842215,-721.261723,0.00021918,2]
[404766279,1770517842224,-721.261723,0.00021918,2]
[404766280,1770517842233,-721.261723,0.00021918,2]
[404766281,1770517842242,-721.261723,0.00021918,2]
[404766282,1770517842252,-721.261723,0.00021918,2]
[404766283,1770517842261,-721.261723,0.00021918,2]
[404766284,1770517842270,-721.261723,0.00021918,2]
[404766285,1770517842280,-721.261723,0.00021918,2]
[404766286,1770517842289,-721.261723,0.00021918,2]
[404766287,1770517842301,-721.261723,0.00021918,2]
[404766288,1770517842316,-721.261723,0.00021918,2]
[404766289,1770517842325,-721.261723,0.00021918,2]
[404766290,1770517842334,-721.261723,0.00021918,2]
[404766291,1770517842343,-721.261723,0.00021918,2]
[404766292,1770517842352,-721.261723,0.00021918,2]
[404766293,1770517842362,-721.261723,0.00021918,2]
[404766294,1770517842371,-721.261723,0.00021918,2]
[404766295,1770517842380,-721.261723,0.00021918,2]
[404766296,1770517842389,-721.261729,0.00021918,2]
[404766297,1770517842400,-501.22133182,0.00021918,2]
[404766298,1770517842410,-178.988777,0.00022114,2]
[404766299,1770517842419,-1036.50236791,0.000225,2]
[404766300,1770517842428,-478.6890356,0.00022766,2]
[404766301,1770517842439,-1741.41295078,0.00024,2]
[404766302,1770517842448,-467.10595616,0.00024,2]
[404766303,1770517842457,-2134.1777801,0.00024142,2]
[404766304,1770517842466,-178.988777,0.0002422,2]
[404766305,1770517842476,-77738.64370062,0.0002465,2]
[404766306,1770517842485,-150.37803801,0.00024658,2]
[404766307,1770517842494,-159.47,0.000247,14]
[404766308,1770517842504,-14558.20880105,0.00024774,2]
[404766309,1770517842515,-740.37321487,0.00024864,2]
[404766310,1770517842526,-3111.69891976,0.000249,2]
[404766311,1770517842537,-428.300531,0.00024992,2]
[404766312,1770517842546,-2683.19656617,0.00025,2]
[404766313,1770517842555,-10364.0,0.00025,2]
[404766314,1770517842564,-150.0,0.00025,2]
[404766315,1770517842573,-500.0,0.00025,2]
[404766316,1770517842582,-762.48672376,0.00025,2]
[404766317,1770517842591,-786.40799392,0.00025,2]
[404766318,1770517842601,-777.92472994,0.0002599,2]
[404766319,1770517842612,-2568.33157619,0.00026,2]
[404766320,1770517842622,-271.839992,0.00027397,2]
[404766321,1770517842633,-271.839992,0.00027397,2]
[404766322,1770517842643,-271.839992,0.00027397,2]
[404766323,1770517842653,-271.839992,0.00027397,2]
[404766324,1770517842664,-271.839992,0.00027397,2]
[404766325,1770517842676,-271.839992,0.00027397,2]
[404766326,1770517842686,-271.839992,0.00027397,2]
[404766327,1770517842697,-271.839992,0.00027397,2]
[404766328,1770517842707,-271.839992,0.00027397,2]
[404766329,1770517842717,-271.839992,0.00027397,2]
[404766330,1770517842727,-271.839992,0.00027397,2]
[404766331,1770517842737,-271.839992,0.00027397,2]
[404766332,1770517842746,-271.839992,0.00027397,2]
[404766333,1770517842755,-271.839992,0.00027397,2]
[404766334,1770517842764,-271.839985,0.00027397,2]
[404766335,1770517842774,-263.699953,0.00027397,2]
[404766336,1770517842784,-152.07680212,0.00027397,5]
[404766337,1770517842793,-216.20030269,0.00027494,2]
[404766338,1770517842803,-157.26958516,0.00028027,27]
[404766339,1770517842812,-741.77891082,0.00028079,2]
[404766340,1770517842824,-326.40140502,0.00028942,2]
[404766341,1770517842835,-415.93783042,0.00029712,2]
[404766342,1770517842846,-702.0,0.00030054,30]
[404766343,1770517842855,-23697.7718774,0.00030152,120]
[404766344,1770517842864,-159.47,0.000325,14]
[404766345,1770517842873,-577.61,0.00032877,10]
[404766346,1770517842882,-989.08,0.00032877,10]
[404766347,1770517842892,-262.65053815,0.000332,117]
[404766348,1770517842901,-8200.62955008,0.00033462,2]
[404766349,1770517842910,-777.92472994,0.00033643,2]
[404766350,1770517842922,-741.63626124,0.00033755,7]
[404766351,1770517842932,-741.63626124,0.000348,7]
[404766352,1770517842942,-500.0,0.00038356,120]
[404766353,1770517842951,-500.0,0.00038356,120]
[404766354,1770517842960,-500.0,0.00038356,120]
[404766355,1770517842969,-500.0,0.00038356,120]
[404766356,1770517842979,-500.0,0.00038356,120]
[404766357,1770517842988,-500.0,0.00038356,120]
[404766359,1770517842997,-500.0,0.00038356,120]
[404766361,1770517843006,-500.0,0.00038356,120]
[404766363,1770517843015,-500.0,0.00038356,120]
[404766364,1770517843024,-500.0,0.00038356,120]
[404766365,1770517843033,-500.0,0.00038356,120]
[404766366,1770517843043,-500.0,0.00038356,120]
[404766367,1770517843052,-500.0,0.00038356,120]
[404766368,1770517843061,-500.0,0.00038356,120]
[404766369,1770517843072,-500.0,0.00038356,120]
[404766370,1770517843082,-500.0,0.00038356,120]
[404766371,1770517843091,-500.0,0.00038356,120]
[404766372,1770517843100,-500.0,0.00038356,120]
[404766373,1770517843109,-500.0,0.00038356,120]
[404766374,1770517843118,-559.18322868,0.00038356,120]
[404766375,1770517843127,-4779.16126748,0.00038427,10]
[404766376,1770517843137,-159.47,0.000385,30]
[404766377,1770517843146,-197.25199563,0.00039,120]
[404766378,1770517843155,-283.563719,0.00039041,60]
[404766379,1770517843165,-186.5361228,0.00039364,15]
[404766380,1770517843175,-248.36876617,0.00039544,120]
[404766381,1770517843184,-248.36876617,0.00039544,120]
[404766382,1770517843193,-248.36876617,0.00039544,120]
[404766383,1770517843203,-157.63863227,0.00039544,120]
[404766384,1770517843212,-4685.0,0.00039544,120]
[404766385,1770517843222,-3154.0,0.00039544,120]
[404766386,1770517843232,-267.28360628,0.00039544,120]
[404766387,1770517843242,-151.0,0.00039544,7]
[404766388,1770517843252,-151.0,0.00039544,7]
[404766389,1770517843261,-151.0,0.00039544,7]
[404766390,1770517843271,-151.0,0.00039544,7]
[404766391,1770517843280,-213.922536,0.00039544,7]
[404766392,1770517843289,-207.58096,0.00039544,120]
[404766393,1770517843298,-207.58096,0.00039544,120]
[404766394,1770517843308,-207.58096,0.00039544,120]
[404766395,1770517843318,-207.58096,0.00039544,120]
[404766396,1770517843444,-207.58096,0.00039544,120]
[404766397,1770517843457,-207.58096,0.00039544,120]
[404766398,1770517843466,-207.58096,0.00039544,120]
[404766399,1770517843478,-207.58096,0.00039544,120]
[404766400,1770517843488,-207.58096,0.00039544,120]
[404766401,1770517843498,-207.58096,0.00039544,120]
[404766402,1770517843509,-207.58096,0.00039544,120]
[404766403,1770517843519,-207.58096,0.00039544,120]
[404766404,1770517843530,-207.58096,0.00039544,120]
[404766405,1770517843540,-207.58096,0.00039544,120]
[404766406,1770517843549,-207.58096,0.00039544,120]
[404766407,1770517843559,-207.58096,0.00039544,120]
[404766408,1770517843570,-207.58096,0.00039544,120]
[404766409,1770517843580,-207.58096,0.00039544,120]
[404766410,1770517843589,-207.58096,0.00039544,120]
[404766411,1770517843598,-207.580954,0.00039544,120]
[404766412,1770517843607,-151.0,0.00039544,120]
[404766413,1770517843615,-151.0,0.00039544,120]
[404766414,1770517843624,-193.932271,0.00039544,120]
[404766415,1770517843633,-825.47746022,0.00039544,35]
[404766416,1770517843643,-321.617553,0.00039544,28]
[404766417,1770517843651,-321.617553,0.00039544,28]
[404766418,1770517843660,-321.617553,0.00039544,28]
[404766419,1770517843669,-321.617553,0.00039544,28]
[404766421,1770517843679,-321.617553,0.00039544,28]
[404766423,1770517843688,-321.617553,0.00039544,28]
[404766424,1770517843697,-321.617553,0.00039544,28]
[404766425,1770517843706,-321.617553,0.00039544,28]
[404766426,1770517843715,-321.617553,0.00039544,28]
[404766427,1770517843724,-321.617553,0.00039544,28]
[404766428,1770517843734,-321.617553,0.00039544,28]
[404766429,1770517843743,-321.617553,0.00039544,28]
[404766430,1770517843752,-321.617553,0.00039544,28]
[404766431,1770517843762,-321.617553,0.00039544,28]
[404766432,1770517843771,-321.617553,0.00039544,28]
[404766433,1770517843780,-321.617553,0.00039544,28]
[404766434,1770517843789,-321.617553,0.00039544,28]
[404766435,1770517843798,-321.617553,0.00039544,28]
[404766436,1770517843807,-321.617553,0.00039544,28]
[404766437,1770517843816,-321.617562,0.00039544,28]
[404766438,1770517843825,-1370.37231593,0.00039544,60]
[404766439,1770517843834,-214.5927452,0.00039544,30]
[404766440,1770517843842,-173.02175959,0.00039544,120]
[404766441,1770517843851,-1604.476547,0.00039544,30]
[404766442,1770517843860,-237.65727605,0.0003999,2]
[404766443,1770517843869,-17043.41504702,0.0004,120]
[404766448,1770517844735,-967.9999982,0.0004,120]
[404766449,1770517844747,-385.0,0.0004,120]
[404766462,1770517907257,500.0,0.00017839,2]
[404766463,1770517907284,500.0,0.00017839,2]
[404766464,1770517907314,500.0,0.00017839,2]
[404766465,1770517907340,500.0,0.00017839,2]
[404766466,1770517907366,500.0,0.00017839,2]
[404766467,1770517907406,500.0,0.00017839,2]
[404766468,1770517907437,500.0,0.00017839,2]
[404766469,1770517907464,500.0,0.00017839,2]
[404766470,1770517907495,500.0,0.00017839,2]
[404766471,1770517907521,500.0,0.00017839,2]
[404766472,1770517907556,500.0,0.00017839,2]
[404766473,1770517907582,500.0,0.00017839,2]
[404766474,1770517907611,500.0,0.00017839,2]
[404766475,1770517907637,500.0,0.00017839,2]
[404766476,1770517907859,328.43775267,0.00017839,2]
[404766486,1770518413654,-265.0,0.00018111,2]
[404766497,1770518819126,-40.72748372,0.00018111,2]
[404766498,1770518819148,-150.0,0.00018165,2]
[404766499,1770518819169,-216.62463098,0.00018219,2]
[404766500,1770518844801,158.2,0.00013273,2]
[404766519,1770519037812,-333.68483972,0.00018111,2]
[404766520,1770519037824,-150.0,0.00018632,2]
[404766521,1770519037835,-199.72155241,0.00019154,2]
[404766522,1770519037845,-158.8505607,0.00020632,2]
[404766523,1770519037855,-359.49879434,0.00020982,2]
[404766524,1770519037865,-300.0,0.00026574,2]
[404766525,1770519037875,-300.0,0.00026574,2]
[404766526,1770519037885,-300.0,0.00026574,2]
[404766527,1770519037895,-711.38255655,0.00026954,30]
[404766537,1770519039913,-0.1568951,0.00026954,30]
[404766542,1770519039955,-288.46054835,0.00026954,30]
[404766544,1770519039965,-111.53945165,0.0002965,2]
[404766963,1770519044308,-45.26134608,0.0002965,2]
[404766965,1770519044323,-91.69603027,0.0002965,2]
[404766967,1770519044332,-248.496828,0.00030898,2]
[404766969,1770519044343,-672.0,0.00031498,30]
[404766971,1770519044352,-248.496828,0.00032147,2]
[404766973,1770519044363,-265.85974899,0.00033068,7]
[404766975,1770519044373,-500.0,0.00033068,7]
[404766977,1770519044383,-209.86956814,0.00033068,7]
[404766979,1770519044393,-500.0,0.00033068,7]
[404766981,1770519044405,-500.0,0.00033068,7]
[404766983,1770519044414,-500.0,0.00033068,7]
[404766985,1770519044425,-500.0,0.00033068,7]
[404766988,1770519044440,-500.0,0.00033068,7]
[404766990,1770519044450,-500.0,0.00033068,7]
[404766991,1770519044461,-500.0,0.00033068,7]
[404766993,1770519044471,-430.38708788,0.00033068,7]
[404766995,1770519044481,-500.0,0.00033068,7]
[404766998,1770519044490,-500.0,0.00033068,7]
[404767000,1770519044500,-500.0,0.00033068,7]
[404767002,1770519044510,-45.65046473,0.00033068,7]
[404768340,1770519783714,606.7349713,0.00013273,2]
[404768343,1770519904054,636.55360655,0.00013699,2]
[404768347,1770520083984,154.57,9.99e-05,2]
[404768377,1770520232117,-1018.74932859,0.00024849,2]
[404768378,1770520232130,-3981.25067141,0.00024849,2]
[404768379,1770520232140,-7406.72493486,0.000251,2]
[404768380,1770520232156,-214.04486674,0.00025101,2]
[404768381,1770520232168,-14.39740127,0.00025101,2]
[404768382,1770520232178,-261.96259873,0.00030221,2]
[404768383,1770520232191,-38.03740127,0.00030221,2]
[404768384,1770520232201,-201.343643,0.00030293,60]
[404768386,1770520232211,-959.2848211,0.000306,2]
[404768387,1770520232222,-399.86526697,0.00031303,30]
[404769565,1770520278788,500.0,0.00013699,2]
[404769570,1770521062745,10000.0,0.0003013,120]
[404769571,1770521070693,10000.0,0.0003013,120]
[404769572,1770521079069,10000.0,0.0003013,120]
[404769575,1770521207086,-221.81911928,0.00016111,2]
[404769724,1770521438198,-2095.40359521,0.0001595,2]
[404769744,1770521444658,-24.64656881,0.0001595,2]
[404769745,1770521444669,-2658.1307167,0.0001595,2]
[404769746,1770521444678,-150.0,0.00016112,2]
[404769747,1770521444687,-300.0,0.00016274,2]
[404769748,1770521444696,-426.0,0.00016274,2]
[404769749,1770521444705,-7968.3822799,0.00016275,2]
[404769750,1770521444714,-295.97319226,0.00016438,2]
[404769751,1770521444724,-224.44905248,0.00018112,2]
[404769752,1770521444733,-6888.18586461,0.00025,15]
[404769753,1770521444742,-311.95337285,0.00026748,2]
[404769754,1770521444751,-500.0,0.00026848,2]
[404769755,1770521444760,-429.48124647,0.00026848,2]
[404769756,1770521444776,-70.51875353,0.00026848,2]
[404769757,1770521444785,-500.0,0.00026848,2]
[404769758,1770521444795,-500.0,0.00026848,2]
[404769759,1770521444803,-475.46138138,0.00026848,2]
[404769793,1770521639591,203.43553997,0.00024999,120]
[404769799,1770521998768,526.13397888,0.00024999,120]
[404769882,1770522571262,-2908.51757922,0.00021652,2]
[404769883,1770522571286,-850.21842309,0.00021871,2]
[404769922,1770522640603,-498.33034988,0.00021652,2]
[404769926,1770522645024,-4501.66965012,0.00021652,2]
[404769927,1770522645036,-5503.40974985,0.00021871,2]
[404769935,1770522646428,-2582.58441499,0.00021871,2]
[404769936,1770522646438,-223.15592848,0.00022203,2]
[404769937,1770522646448,-158.829912,0.00023906,2]
[404769938,1770522646459,-4805.6972909,0.00023941,2]
[404769939,1770522646468,-178.4667518,0.00023941,2]
[404769940,1770522646478,-235.2095456,0.00023941,2]
[404769941,1770522646488,-1048.2801558,0.00024346,2]
[404769942,1770522646498,-272.95920127,0.00024999,2]
[404769943,1770522646507,-500.0,0.00025007,2]
[404769944,1770522646516,-500.0,0.00025007,2]
[404769945,1770522646526,-465.26464438,0.00025007,2]
[404769946,1770522646682,-180.10966085,0.00025007,2]
[404769947,1770522646692,-500.0,0.00025007,2]
[404769948,1770522646701,-500.0,0.00025007,2]
[404769949,1770522646710,-500.0,0.00025007,2]
[404769950,1770522646720,-500.0,0.00025007,2]
[404769951,1770522646730,-500.0,0.00025007,2]
[404769952,1770522646739,-212.21365561,0.00025007,2]
[404769953,1770522646748,-500.0,0.00025007,2]
[404769954,1770522646757,-500.0,0.00025007,2]
[404769955,1770522646767,-500.0,0.00025007,2]
[404769956,1770522646776,-500.0,0.00025007,2]
[404769957,1770522646786,-458.568199,0.00025007,2]
[404769958,1770522646796,-588.45,0.00025007,2]
[404769960,1770522646805,-500.0,0.00025007,2]
[404769962,1770522646814,-500.0,0.00025007,2]
[404769964,1770522646824,-500.0,0.00025007,2]
[404769965,1770522646833,-500.0,0.00025007,2]
[404769966,1770522646843,-500.0,0.00025007,2]
[404769967,1770522646853,-500.0,0.00025007,2]
[404769968,1770522646862,-500.0,0.00025007,2]
[404769969,1770522646872,-500.0,0.00025007,2]
[404769970,1770522646882,-500.0,0.00025007,2]
[404769971,1770522646891,-500.0,0.00025007,2]
[404769972,1770522646904,-500.0,0.00025007,2]
[404769973,1770522646917,-500.0,0.00025007,2]
[404769974,1770522646927,-500.0,0.00025007,2]
[404769975,1770522646936,-278.59023766,0.00025007,2]
[404769976,1770522646947,-500.0,0.00025007,2]
[404769977,1770522646956,-500.0,0.00025007,2]
[404769978,1770522646965,-500.0,0.00025007,2]
[404769979,1770522646975,-2005.0,0.00025008,2]
[404769980,1770522646984,-524.48827895,0.00025325,2]
[404769981,1770522646994,-838.0,0.00025325,2]
[404769982,1770522647003,-4582.00471905,0.00025326,2]
[404770060,1770523300992,-143.85876257,0.00018339,2]
[404770061,1770523301005,-493.28247486,0.00018339,2]
[404770062,1770523301014,-143.85876257,0.000189,2]
[404770106,1770523683166,256.73,9.99e-05,2]
[404770140,1770523832472,-303.10001603,0.000189,2]
[404770141,1770523832485,-150.0,0.00018947,2]
[404770142,1770523832494,-159.24125348,0.00019089,2]
[404770143,1770523832504,-177.0,0.00020947,2]
[404770144,1770523832513,-300.0,0.00021662,2]
[404770145,1770523832523,-221.0,0.00021662,2]
[404770146,1770523832532,-110.91950009,0.00021662,2]
[404770162,1770523838532,-1089.08049991,0.00021662,2]
[404770164,1770523838542,-666.0,0.00021663,2]
[404770166,1770523838551,-8462.46179734,0.00021663,2]
[404770168,1770523838561,-666.0,0.00021769,2]
[404770170,1770523838570,-666.0,0.00021811,2]
[404770172,1770523838579,-666.0,0.00021817,2]
[404770174,1770523838588,-300.0,0.00022095,10]
[404770176,1770523838597,-300.0,0.00022095,10]
[404770178,1770523838606,-300.0,0.00022095,10]
[404770180,1770523838615,-300.0,0.00022095,10]
[404770182,1770523838624,-300.0,0.00022095,10]
[404770184,1770523838633,-300.0,0.00022095,10]
[404770186,1770523838643,-300.0,0.00022095,10]
[404770188,1770523838652,-300.0,0.00022095,10]
[404770190,1770523838662,-300.0,0.00022095,10]
[404770192,1770523838671,-300.0,0.00022095,10]
[404770194,1770523838680,-300.0,0.00022095,10]
[404770196,1770523838690,-300.0,0.00022095,10]
[404770198,1770523838699,-300.0,0.00022095,10]
[404770200,1770523838708,-300.0,0.00022095,10]
[404770202,1770523838718,-300.0,0.00022095,10]
[404770204,1770523838728,-487.94484216,0.00022229,2]
[404770206,1770523838738,-666.0,0.0002223,2]
[404770208,1770523838747,-1117.2765391,0.00022238,2]
[404770210,1770523838758,-666.0,0.00022246,2]
[404770212,1770523838767,-666.0,0.00022262,2]
[404770215,1770523838777,-686.86,0.00022319,10]
[404770216,1770523838787,-342.13328124,0.00022329,2]
[404770217,1770523838796,-500.0,0.00022329,2]
[404770218,1770523838805,-224.48469018,0.00022329,2]
[404770219,1770523838815,-500.0,0.00022329,2]
[404770220,1770523838824,-500.0,0.00022329,2]
[404770221,1770523838834,-409.73704659,0.00022329,2]
[404770222,1770523838844,-500.0,0.00022329,2]
[404770223,1770523838853,-500.0,0.00022329,2]
[404770224,1770523838863,-500.0,0.00022329,2]
[404770225,1770523838872,-500.0,0.00022329,2]
[404770226,1770523838882,-500.0,0.00022329,2]
[404770227,1770523838892,-500.0,0.00022329,2]
[404770228,1770523838902,-500.0,0.00022329,2]
[404770229,1770523838911,-959.79524651,0.00022329,2]
[404770230,1770523838920,-959.79524651,0.00022329,2]
[404770231,1770523838930,-959.79524651,0.00022329,2]
[404770232,1770523838939,-959.79524651,0.00022329,2]
[404770233,1770523838948,-959.79524651,0.00022329,2]
[404770234,1770523838957,-959.79524651,0.00022329,2]
[404770235,1770523838966,-959.79524651,0.00022329,2]
[404770236,1770523838976,-959.79524651,0.00022329,2]
[404770237,1770523838985,-959.79524651,0.00022329,2]
[404770238,1770523838995,-959.79524651,0.00022329,2]
[404770239,1770523839004,-959.79524651,0.00022329,2]
[404770240,1770523839014,-959.79524651,0.00022329,2]
[404770241,1770523839023,-959.79524651,0.00022329,2]
[404770242,1770523839033,-959.79524651,0.00022329,2]
[404770243,1770523839043,-959.79524651,0.00022329,2]
[404770244,1770523839053,-959.79524651,0.00022329,2]
[404770245,1770523839063,-959.79524651,0.00022329,2]
[404770246,1770523839073,-959.79524651,0.00022329,2]
[404770247,1770523839082,-959.79524651,0.00022329,2]
[404770248,1770523839091,-959.79524651,0.00022329,2]
[404770249,1770523839100,-959.79524651,0.00022329,2]
[404770250,1770523839110,-959.79524651,0.00022329,2]
[404770251,1770523839119,-959.79524651,0.00022329,2]
[404770252,1770523839128,-959.79524651,0.00022329,2]
[404770253,1770523839138,-959.79524651,0.00022329,2]
[404770254,1770523839148,-959.79524651,0.00022329,2]
[404770255,1770523839157,-959.79524651,0.00022329,2]
[404770256,1770523839169,-959.79524651,0.00022329,2]
[404770257,1770523839178,-959.79524651,0.00022329,2]
[404770258,1770523839188,-959.79524651,0.00022329,2]
[404770259,1770523839198,-959.79524651,0.00022329,2]
[404770260,1770523839207,-959.79524651,0.00022329,2]
[404770261,1770523839216,-959.79524651,0.00022329,2]
[404770262,1770523839226,-959.79524651,0.00022329,2]
[404770263,1770523839235,-959.79524651,0.00022329,2]
[404770264,1770523839246,-959.79524651,0.00022329,2]
[404770265,1770523839256,-959.79524651,0.00022329,2]
[404770266,1770523839267,-959.79524651,0.00022329,2]
[404770267,1770523839276,-959.79524651,0.00022329,2]
[404770268,1770523839286,-959.79524651,0.00022329,2]
[404770269,1770523839297,-959.79524651,0.00022329,2]
[404770270,1770523839306,-959.79524651,0.00022329,2]
[404770271,1770523839315,-500.0,0.00022329,2]
[404770272,1770523839324,-959.79524651,0.00022329,2]
[404770273,1770523839334,-959.79524651,0.00022329,2]
[404770274,1770523839343,-500.0,0.00022329,2]
[404770275,1770523839351,-959.79524651,0.00022329,2]
[404770276,1770523839489,-959.79524651,0.00022329,2]
[404770277,1770523839498,-500.0,0.00022329,2]
[404770278,1770523839508,-959.79524651,0.00022329,2]
[404770279,1770523839517,-651.96444131,0.00022329,2]
[404770280,1770523839526,-959.79524651,0.00022329,2]
[404770281,1770523839535,-959.79524651,0.00022329,2]
[404770282,1770523839544,-959.79524651,0.00022329,2]
[404770283,1770523839554,-959.79524651,0.00022329,2]
[404770284,1770523839563,-959.79524651,0.00022329,2]